Cogmind - Beta 9.5 @@@ ROGUE MODE // 2020.04.10 @ 14:23:02 Player: Omewes Result: Self-destructed Performance ------------- Evolutions (3) 1500 Regions Visited (6) 1200 Robots Destroyed (122) 610 Value Destroyed (3901) 3901 Prototype IDs (3) 60 Alien Tech Used (0) 0 Bonus (1124) 1124 TOTAL SCORE: 8395 Bonus ------- High Alert Combat Kills 364 Follower Combat Kills 60 Entered Garrisons 200 Used RIF Installer 500 Cogmind --------- Core Integrity 384/700 Matter 158/300 Energy 280/280 System Corruption 3% Temperature Cool (0) Movement Treading (185) Ox1 Location -7/Factory Parts ------- > --- POWER (1) -------- Heavy Ion Engine > --- PROPULSION (4) --- Light Treads Armored Treads > --- UTILITY (5) ------ Improved Heat Sink Improved Heat Sink Large Storage Unit Large Storage Unit High-capacity Storage Unit > --- WEAPON (3) ------- (None) > --- INVENTORY (24) --- Faulty Enhanced Nuclear Core Large Storage Unit High-capacity Matter Pod (200) Improved Sensor Array Improved Signal Interpreter Terrain Scanner Advanced Targeting Computer Improved Light Armor Plating Long-range Tractor Beam Missile Launcher Remote Datajack Powered Hammer Katana Peak State ------------ > --- POWER ------------ Heavy Ion Engine > --- PROPULSION ------- Light Treads Light Treads Armored Treads Medium Treads > --- UTILITY ---------- Improved Heat Sink Large Storage Unit Large Storage Unit High-capacity Storage Unit Terrain Scanner > --- WEAPON ----------- Particle Gun Particle Gun Powered Hammer > --- INVENTORY -------- Enhanced Nuclear Core Light Treads Improved Heat Sink Large Storage Unit High-capacity Matter Pod Improved Sensor Array Improved Signal Interpreter Advanced Targeting Computer Improved Light Armor Plating Long-range Tractor Beam Particle Gun Heavy Assault Rifle Shotgun Missile Launcher Remote Datajack Katana [Rating: 31] Favorites ----------- Power Heavy Ion Engine Engine Heavy Ion Engine Propulsion Light Treads Treads Light Treads Utility Large Storage Unit Device Terrain Scanner Storage Large Storage Unit Processor Improved Targeting Computer Hackware Relay Coupler [NC] Weapon Heavy Assault Rifle Energy Gun Particle Gun Ballistic Gun Heavy Assault Rifle Launcher Missile Launcher Special Weapon Remote Datajack Impact Weapon Powered Hammer Slashing Weapon Katana Build | -11 -10 -9 -9 -9 -9 -7 ------- Run | Scr Mat Mat Sto Gar Rec Fac Slots Evolved 6 | . . 2 . . . 4 Power . | . . . . . . . Propulsion 2 | . . . . . . 2 Utility 3 | . . 1 . . . 2 Weapon 1 | . . 1 . . . . Parts Attached 105 | 6 6 16 19 12 2 44 Power 9 | 1 1 1 4 1 . 1 Engine 9 | 1 1 1 4 1 . 1 Core . | . . . . . . . Reactor . | . . . . . . . Propulsion 26 | 2 2 6 4 2 1 9 Treads 26 | 2 2 6 4 2 1 9 Leg . | . . . . . . . Wheel . | . . . . . . . Hover . | . . . . . . . Flight . | . . . . . . . Utility 19 | 1 3 1 1 . . 13 Device 8 | . . . . . . 8 Storage 6 | 1 3 . 1 . . 1 Processor 3 | . . 1 . . . 2 Hackware 2 | . . . . . . 2 Protection . | . . . . . . . Artifact . | . . . . . . . Weapon 51 | 2 . 8 10 9 1 21 Energy Gun 5 | . . . . . . 5 Energy Cannon . | . . . . . . . Ballistic Gun 36 | 2 . 8 8 7 . 11 Ballistic Cannon . | . . . . . . . Launcher 1 | . . . 1 . . . Special Weapon 1 | . . . . . . 1 Impact Weapon 2 | . . . . . . 2 Slashing Weapon 6 | . . . 1 2 1 2 Piercing Weapon . | . . . . . . . Special Melee Weapon . | . . . . . . . Unidentified Prototypes 2 | . . 1 1 . . . Parts Lost 24 | . . 1 1 4 . 18 Power 2 | . . . 1 . . 1 Propulsion 5 | . . . . . . 5 Utility 1 | . . . . . . 1 Weapon 16 | . . 1 . 4 . 11 Highest Loss Streak 9 | . . 1 1 3 . 9 Average Slot Usage (%) 98 | . 97 98 100 99 100 98 Engine 10 | . 14 11 11 11 11 7 Treads 24 | . 28 21 22 22 22 29 Device 2 | . . . . . . 12 Storage 26 | . 25 22 29 33 33 23 Processor 2 | . . 10 3 . . 1 Energy Gun 1 | . . . . . . 6 Ballistic Gun 26 | . 28 32 32 32 25 13 Naked Turns . | . . . . . . . Heaviest Build 85 | 12 38 48 68 65 65 85 Greatest Support 88 | 40 40 40 43 43 40 88 Greatest Overweight (x) 2 | . . 2 1 1 1 1 Average Overweight (x) . | . . . 1 1 1 . Largest Inventory Capacity 30 | 6 16 16 22 22 22 30 Average Capacity 18 | 5 8 16 20 22 22 23 Most Carried 22 | 2 11 16 22 21 20 22 Average Carried 14 | . 4 13 17 18 19 17 Final Capacity 24 | 6 16 16 22 22 22 24 Final Carried 20 | 2 10 16 20 19 20 13 Class Distribution -------------------- 44% | Scavenger-Gunner 19% | Mutant 10% | Scavenger-Skirmisher 10% | Scavenger-Mutant 8% | Hauler-Gunner 4% | Hauler-Mutant Dominant Class ---------------- Mutant | -10/Materials Scavenger-Gunner | -9/Materials Scavenger-Gunner | -9/Storage Scavenger-Gunner | -9/Garrison Scavenger-Mutant | -9/Recycling Scavenger-Skirmisher | -7/Factory Resources | -11 -10 -9 -9 -9 -9 -7 ----------- Run | Scr Mat Mat Sto Gar Rec Fac Matter Collected 3095 | 186 334 554 615 631 . 775 Remotely . | . . . . . . . Salvage Created 4587 | . 537 1183 1147 624 14 1082 Parts 274 | . 34 71 75 34 1 59 Haulers Intercepted 6 | . . 2 3 . . 1 Recyclers Shooed 1 | . . . . . . 1 Parts Field Recycled . | . . . . . . . Retrieved Matter . | . . . . . . . Parts Self-Destructed . | . . . . . . . Prevented . | . . . . . . . Kills | -11 -10 -9 -9 -9 -9 -7 ------- Run | Scr Mat Mat Sto Gar Rec Fac Combat Hostiles Destroyed 101 | . 14 28 23 17 1 18 Guns 100 | . 14 28 23 17 1 17 Classes Destroyed 14 | . 6 3 2 . 1 2 Worker 3 | . 1 . . . . 2 Builder 3 | . . . 1 . . 2 Hauler 6 | . . 2 3 . . 1 Recycler 3 | . 1 . 1 . . 1 Operator 1 | . 1 . . . . . Drone 1 | . . . . . 1 . Watcher 5 | . 1 2 1 . . 1 Swarmer 26 | . 9 8 5 4 . . Grunt 50 | . 5 13 9 12 . 11 Brawler 2 | . . . 1 . . 1 Duelist 2 | . . 1 1 . . . Sentry 16 | . . 6 7 1 . 2 Hunter 2 | . . . . . . 2 Programmer 2 | . . . . . . 2 Best Kill Streak 11 | . 5 6 8 11 1 5 Combat Bots Only 11 | . 4 5 5 11 1 4 Max Kills in Single Turn 2 | . 2 1 2 2 1 2 Gunslinging 1 | . . . 1 1 . 1 Exploded . | . . . . . . . Melee . | . . . . . . . Uniques/NPCs Destroyed . | . . . . . . . Combat | -11 -10 -9 -9 -9 -9 -7 -------- Run | Scr Mat Mat Sto Gar Rec Fac Damage Taken 5662 | . 419 885 914 717 . 2727 Core 719 | . 99 135 93 76 . 316 Absorbed by Shields . | . . . . . . . Core Remaining (%) 61 | 100 60 . . . 24 . Volleys Fired 304 | . 50 65 62 30 3 94 Largest 3 | . 2 3 3 3 3 3 Hottest 195 | . 40 69 69 69 69 195 Shots Fired 785 | . 100 193 185 90 9 208 Gun 771 | . 100 193 185 90 9 194 Cannon . | . . . . . . . Launcher . | . . . . . . . Special 14 | . . . . . . 14 Kinetic 727 | . 100 193 185 90 9 150 Thermal 44 | . . . . . . 44 Explosive . | . . . . . . . Electromagnetic . | . . . . . . . Robot Hit Streak 17 | . 10 17 17 12 1 10 Robot Miss Streak 5 | . 4 5 4 3 3 3 Penetration Max 1 | . . . . . . 1 Secondary Targets 25 | . . 6 5 9 . 5 Max Gunslinging Chain 2 | . . 1 1 2 . 1 Shots Hit Robots 545 | . 56 136 134 59 2 158 Core Hits 216 | . 29 58 47 28 1 53 Critical Hits 4 | . . 1 3 . . . Critical Kills . | . . . . . . . Critical Parts Destroyed 3 | . . 1 2 . . . Melee Attacks 17 | . . . 1 2 4 10 Impact 3 | . . . . . . 3 Slashing 14 | . . . 1 2 4 7 Piercing . | . . . . . . . Sneak Attacks . | . . . . . . . Combat Hostiles . | . . . . . . . Follow-up Attacks . | . . . . . . . Damage Inflicted 7063 | . 574 1439 1745 803 16 2486 Guns 7042 | . 568 1430 1739 803 16 2486 Cannons . | . . . . . . . Explosions . | . . . . . . . Melee . | . . . . . . . Ramming 21 | . 6 9 6 . . . Kinetic 6488 | . 568 1430 1739 803 16 1932 Thermal 554 | . . . . . . 554 Explosive . | . . . . . . . Electromagnetic . | . . . . . . . Impact . | . . . . . . . Slashing . | . . . . . . . Piercing . | . . . . . . . Highest Corruption 3 | . 1 2 2 2 2 3 Average Corruption 1 | . 1 2 2 2 2 1 Corruption Purged . | . . . . . . . Effects 47 | . . 10 23 5 4 5 Message Errors 12 | . . 3 6 2 1 . Heat Flow Errors 6 | . . 1 3 1 1 . Energy Discharges 7 | . . 1 1 1 2 2 Data Loss (minor) 4 | . . 2 1 1 . . Targeting Errors 15 | . . 2 11 . . 2 Weapon Failures 3 | . . 1 1 . . 1 Overload Shots . | . . . . . . . Overflow Damage . | . . . . . . . Projectiles . | . . . . . . . Explosions . | . . . . . . . Melee . | . . . . . . . Knockbacks . | . . . . . . . Impact . | . . . . . . . Kinetic . | . . . . . . . Secondary . | . . . . . . . Self-Inflicted Damage . | . . . . . . . Shots . | . . . . . . . Rammed 5 | . 1 2 2 . . . Targets Rammed 5 | . 1 2 2 . . . Kicked . | . . . . . . . Crushed . | . . . . . . . Highest Temperature 303 | . 6 291 277 187 223 303 Average Temperature 52 | . 6 56 43 36 66 70 Received Heat Transfer 2103 | . 75 273 297 246 . 1212 Siege Activations . | . . . . . . . Robots Corrupted . | . . . . . . . Combat Hostiles . | . . . . . . . Parts Fried . | . . . . . . . Impact Corruptions . | . . . . . . . Robots Melted 1 | . . . . . . 1 Combat Hostiles 1 | . . . . . . 1 Parts Melted 1 | . . . . . . 1 Heat Transferred 1295 | . . . . . . 1295 Parts Sabotaged . | . . . . . . . Parts Stolen . | . . . . . . . Parts Stripped . | . . . . . . . Power Chain Reactions . | . . . . . . . Missiles Intercepted . | . . . . . . . Alert | -11 -10 -9 -9 -9 -9 -7 ------- Run | Scr Mat Mat Sto Gar Rec Fac Peak Influence 1055 | . 330 475 523 898 403 1055 Average Influence 325 | . 87 176 324 630 173 536 Maximum Alert Level 3 | . 1 2 2 3 2 3 Low Security (%) 44 | 100 84 62 6 . 88 33 Level 1 25 | . 15 33 64 11 . 16 Level 2 15 | . . 4 29 59 11 1 Level 3 14 | . . . . 29 . 48 Level 4 . | . . . . . . . Level 5 . | . . . . . . . High Security . | . . . . . . . Max Security . | . . . . . . . Squads Dispatched 20 | . 3 1 7 . . 9 Investigation 4 | . 1 1 . . . 2 Extermination 2 | . . . . . . 2 Reinforcement 6 | . 2 . 1 . . 3 Assault 2 | . . . 2 . . . Garrison 6 | . . . 4 . . 2 Intercept . | . . . . . . . Construction Impeded 2 | . . . 1 . . 1 Haulers Reinforced 1 | . . . . . . 1 Stealth | -11 -10 -9 -9 -9 -9 -7 --------- Run | Scr Mat Mat Sto Gar Rec Fac Distress Signals 13 | . 2 4 4 . . 3 Communications Jammed . | . . . . . . . Distress Signals . | . . . . . . . Times Spotted 181 | . 26 40 40 26 22 27 Peak Tracking Total 11 | . 5 6 11 10 7 5 Tactical Retreats 11 | . 1 2 2 4 . 2 Traps | -11 -10 -9 -9 -9 -9 -7 ------- Run | Scr Mat Mat Sto Gar Rec Fac Traps Triggered 10 | . 2 3 1 3 . 1 Indirectly . | . . . . . . . Trap Hack Attempts . | . . . . . . . Triggered . | . . . . . . . Disarmed . | . . . . . . . Reprogrammed . | . . . . . . . Reused . | . . . . . . . Traps Extracted . | . . . . . . . Installed . | . . . . . . . Triggered . | . . . . . . . Machines | -11 -10 -9 -9 -9 -9 -7 ---------- Run | Scr Mat Mat Sto Gar Rec Fac Machines Disabled 4 | . . 2 . 2 . . Max in Single Turn 1 | . . 1 . 1 . . Garrison Relay 2 | . . . . 2 . . Machines Sabotaged . | . . . . . . . Garrisons Compromised . | . . . . . . . Overloaded Fab Kills . | . . . . . . . Fab Network Shutdowns . | . . . . . . . Hacking | -11 -10 -9 -9 -9 -9 -7 --------- Run | Scr Mat Mat Sto Gar Rec Fac Machines Accessed 26 | . 3 4 5 . 9 5 Terminals 17 | . 3 3 3 . 4 4 Fabricators . | . . . . . . . Repair Stations . | . . . . . . . Recycling Units 7 | . . 1 1 . 5 . Scanalyzers 1 | . . . . . . 1 Garrison Access 1 | . . . 1 . . . Total Hacks 59 | . 10 10 10 . 19 10 Successful 29 | . 3 6 6 . 11 3 Failed 30 | . 7 4 4 . 8 7 Catastrophic 6 | . 1 . 1 . 2 2 Database Lockouts . | . . . . . . . Manual 24 | . 6 4 6 . 6 2 Terminals 44 | . 10 8 6 . 11 9 Fabricators . | . . . . . . . Repair Stations . | . . . . . . . Recycling Units 12 | . . 2 2 . 8 . Scanalyzers 1 | . . . . . . 1 Garrison Access 2 | . . . 2 . . . Terminal Hacks 18 | . 3 3 3 . 6 3 Robot Analysis 1 | . . . . . 1 . Prototype ID Bank 1 | . . . . . 1 . Branch Access Points 1 | . . 1 . . . . Emergency Access Points 1 | . . . . . 1 . Terminal Index 3 | . . . 1 . 1 1 Alert Level 3 | . 1 1 1 . . . Unreport Threat 5 | . 1 . 1 . 2 1 Security Status 1 | . . . . . . 1 Hauler Manifests 1 | . . 1 . . . . Registered Components 1 | . 1 . . . . . Fabricator Hacks . | . . . . . . . Repair Station Hacks . | . . . . . . . Recycling Unit Hacks 6 | . . 1 . . 5 . Report Inventory 2 | . . 1 . . 1 . Retrieve Components 4 | . . . . . 4 . Scanalyzer . | . . . . . . . Garrison Access Hacks 1 | . . . 1 . . . Unlock Access 1 | . . . 1 . . . Unauthorized Hacks 10 | . . 4 5 . . 1 Terminals 1 | . . 1 . . . . Track 1 | . . 1 . . . . Fabricators . | . . . . . . . Repair Stations . | . . . . . . . Recycling Units 2 | . . 1 1 . . . Mask 2 | . . 1 1 . . . Scanalyzers . | . . . . . . . Garrison Access 1 | . . . 1 . . . Decoy 1 | . . . 1 . . . Data Cores Recovered . | . . . . . . . Used . | . . . . . . . Hacking Detections 23 | . 3 4 5 . 6 5 Full Trace Events 4 | . 1 . . . 1 2 Feedback Events . | . . . . . . . Feedback Blocked . | . . . . . . . Robot Schematics Acquired . | . . . . . . . Robots Built . | . . . . . . . Matter . | . . . . . . . Time . | . . . . . . . Total Robot Build Rating . | . . . . . . . Part Schematics Acquired . | . . . . . . . Parts Built . | . . . . . . . Matter . | . . . . . . . Time . | . . . . . . . Total Part Build Rating . | . . . . . . . Parts Repaired . | . . . . . . . Time . | . . . . . . . Parts Recycled . | . . . . . . . Recycled Matter . | . . . . . . . Retrieved Matter . | . . . . . . . Retrieved Components 9 | . . . . . 9 . Parts Scanalyzed . | . . . . . . . Part Schematics Acquired . | . . . . . . . Parts Damaged . | . . . . . . . Bothacking | -11 -10 -9 -9 -9 -9 -7 ------------ Run | Scr Mat Mat Sto Gar Rec Fac Used RIF Installer 1 | . . . . 1 . . Robots Hacked 2 | . . . . . . 2 Non-combat 2 | . . . . . . 2 Combat . | . . . . . . . Robot Hacks Applied 10 | . . . . . . 10 generate_echo 2 | . . . . . . 2 map_walls 1 | . . . . . . 1 purge_threat 4 | . . . . . . 4 disarm_traps 1 | . . . . . . 1 reprogram_traps 1 | . . . . . . 1 summon_haulers 1 | . . . . . . 1 Relay Couplers Released 8 | . . . . 8 . . Machine Destruction 8 | . . . . 8 . . Attached 2 | . . . . . . 2 Robots Rewired . | . . . . . . . Allies Hacked . | . . . . . . . Hacks Repelled . | . . . . . . . Allies | -11 -10 -9 -9 -9 -9 -7 -------- Run | Scr Mat Mat Sto Gar Rec Fac Total Allies 2 | . . . 2 . . . Largest Group 2 | . . . 2 . . . Highest-Rated Group 62 | . . . 62 . . . Highest-Rated Ally 31 | . . . 31 . . . Total Orders . | . . . . . . . Ally Attacks 14 | . . . 14 . . . Total Damage 245 | . . . 245 . . . Kills 2 | . . . 2 . . . Allies Corrupted . | . . . . . . . Allies Melted . | . . . . . . . Intel | -11 -10 -9 -9 -9 -9 -7 ------- Run | Scr Mat Mat Sto Gar Rec Fac Robot Analysis Total 1 | . . . . . 1 . Derelict Logs Recovered . | . . . . . . . Drone Launches . | . . . . . . . Drone Recoveries . | . . . . . . . Exploration | -11 -10 -9 -9 -9 -9 -7 ------------- Run | Scr Mat Mat Sto Gar Rec Fac Turns Passed 5283 | 77 959 999 948 727 411 1162 Spaces Moved 2268 | 49 470 399 354 333 215 448 Core 10 | 10 . . . . . . Treads 2258 | 39 470 399 354 333 215 448 Legs . | . . . . . . . Wheels . | . . . . . . . Hover . | . . . . . . . Flight . | . . . . . . . Fastest Speed 50 | 50 160 160 180 180 180 160 Average Speed 171 | 137 160 176 180 180 180 167 Slowest Speed 200 | 160 160 200 180 180 180 182 Overloaded Moves . | . . . . . . . Propulsion Burnouts . | . . . . . . . Robots Hopped . | . . . . . . . Cave-ins Triggered . | . . . . . . . Exploration Rate (%) 43 | 5 64 38 62 52 71 12 Regions Visited 6 Branch Regions 2 Pre-discovered Areas . | . . . . . . . Known Exits Taken 2 | . . 1 1 . . . Unknown Exits Taken 3 | 1 1 . . . 1 . Scrap Searched . | . . . . . . . Spaces Dug 13 | . . . 1 . 3 9 Terrain Destroyed 13 | . . . 1 . 3 9 Melee 13 | . . . 1 . 3 9 Projectile . | . . . . . . . AOE . | . . . . . . . Actions | -11 -10 -9 -9 -9 -9 -7 --------- Run | Scr Mat Mat Sto Gar Rec Fac Total 3039 | 56 586 563 531 390 227 686 Wait 243 | . 49 58 72 . . 64 Move 2262 | 48 469 398 353 332 214 448 Hop . | . . . . . . . Pick Up 47 | 2 7 12 7 5 2 12 Fast Attach 19 | 6 1 4 2 . . 6 Attach 35 | . . 3 3 6 1 22 Detach 14 | . . 1 1 2 1 9 Swap 51 | . 5 9 14 6 1 16 Drop 38 | . 4 11 14 3 1 5 Fire 304 | . 50 65 62 30 3 94 Melee 17 | . . . 1 2 4 10 Ram . | . . . . . . . Kick . | . . . . . . . Crush 5 | . 1 2 2 . . . Escape Stasis 4 | . . . . 4 . . Rewire . | . . . . . . . Trap . | . . . . . . . Miscellaneous . | . . . . . . . Route ------- -11/Scrapyard -10/Materials (discovered 3 exits: *Mat x2 / [*Min]) -9/Materials (discovered 3 exits: *Min x2 / *Sto) -9/Storage -9/Garrison (discovered 2 exits: *Rec x2) -9/Recycling -7/Factory (discovered 1 exit: *Fac) History --------- Turn | Location | Event 2 | -11/Scrapyard | Discovered new exit (range 16) 78 | -11/Scrapyard | Entered Materials 307 | -10/Materials | Build established: Mutant 378 | -10/Materials | Discovered new exit (range 16) 895 | -10/Materials | Discovered new exit (range 12) 1012 | -10/Materials | Discovered new exit (range 7) 1037 | -10/Materials | Entered another Materials area 1037 | -9/Materials | Evolved 2 slots: Utility x1, Weapon x1 1414 | -9/Materials | Discovered new exit (range 16) 1481 | -9/Materials | Build established: Scavenger-Gunner 1554 | -9/Materials | Identified exit to Mines 1554 | -9/Materials | Identified exit to Storage 2036 | -9/Materials | Entered Storage 2244 | -9/Storage | Garrison activated, responded to threat 2314 | -9/Storage | Identified exit to Garrison 2564 | -9/Storage | Garrison activated, responded to threat 2774 | -9/Storage | Core integrity fell below 50% 2873 | -9/Storage | Met a pair of Derelict thieves 2902 | -9/Storage | Build established: Hauler-Gunner 2984 | -9/Storage | Entered Garrison 3060 | -9/Garrison | Triggered checkpoint 3111 | -9/Garrison | Garrison Relay disabled 3264 | -9/Garrison | Triggered checkpoint 3315 | -9/Garrison | Triggered checkpoint 3350 | -9/Garrison | Destroyed 11 combat bots 3354 | -9/Garrison | Lost 3 parts (3w) 3384 | -9/Garrison | Build established: Scavenger-Gunner 3397 | -9/Garrison | Discovered new exit (range 12) 3490 | -9/Garrison | Triggered checkpoint 3504 | -9/Garrison | Garrison Relay disabled 3582 | -9/Garrison | Triggered checkpoint 3680 | -9/Garrison | Discovered new exit (range 8) 3704 | -9/Garrison | Installed Relay Interface Framework 3711 | -9/Garrison | Entered Recycling 3739 | -9/Recycling | Spotter reported a threat 3772 | -9/Recycling | Spotter reported a threat 3772 | -9/Recycling | Spotter reported a threat 3807 | -9/Recycling | Spotter reported a threat 3816 | -9/Recycling | Spotter reported a threat 3825 | -9/Recycling | Spotter reported a threat 3825 | -9/Recycling | Spotter reported a threat 3852 | -9/Recycling | Spotter reported a threat 3868 | -9/Recycling | Spotter reported a threat 3870 | -9/Recycling | Spotter reported a threat 3878 | -9/Recycling | Spotter reported a threat 3878 | -9/Recycling | Spotter reported a threat 3910 | -9/Recycling | Spotter reported a threat 3923 | -9/Recycling | Spotter reported a threat 3931 | -9/Recycling | Spotter reported a threat 3931 | -9/Recycling | Spotter reported a threat 3934 | -9/Recycling | Spotter reported a threat 3954 | -9/Recycling | Spotter reported a threat 3958 | -9/Recycling | Spotter reported a threat 3963 | -9/Recycling | Spotter reported a threat 3976 | -9/Recycling | Spotter reported a threat 3984 | -9/Recycling | Spotter reported a threat 3987 | -9/Recycling | Spotter reported a threat 4028 | -9/Recycling | Spotter reported a threat 4037 | -9/Recycling | Spotter reported a threat 4038 | -9/Recycling | Spotter reported a threat 4040 | -9/Recycling | Spotter reported a threat 4065 | -9/Recycling | Spotter reported a threat 4088 | -9/Recycling | Discovered new exit (range 16) 4122 | -9/Recycling | Entered Factory 4122 | -7/Factory | Evolved 4 slots: Propulsion x2, Utility x2 4175 | -7/Factory | Build established: Scavenger-Mutant 4752 | -7/Factory | Garrison activated, responded to threat 4839 | -7/Factory | Lost 7 parts (1p2n1u3w) 4972 | -7/Factory | Discovered new exit (range 4) 5008 | -7/Factory | Identified exit to Factory 5207 | -7/Factory | Garrison activated, responded to threat 5284 | -7/Factory | Self-destructed Last Messages --------------- 05247_ Hvy. Assault Rifle destroyed. 05250_ Slug penetrates Y-54 Guardian. 05257_ Lgt. Treads destroyed. 05258_ Slug penetrates Y-54 Guardian. 05260_ Lgt. Treads destroyed. 05262_ Slug penetrates Y-54 Guardian. 05262_ A-02 Transporter calls for reinforcements. 05262_ ALERT: Hostile activity reported, dispatching reinforcements to area. 05264_ Y-54 Guardian destroyed. 05266_ Slug penetrates Wall. 05270_ Slug penetrates P-60 Hacker. 05270_ U-05 Engineer lays Concrete. 05272_ Slug penetrates P-60 Hacker. 05273_ U-05 Engineer lays Concrete. 05274_ Slug penetrates P-60 Hacker. 05274_ P-60 Hacker destroyed. 05278_ R-06 Scavenger destroyed. 05279_ K-01 Serf collects debris. 05282_ System corrupted: Gauss Rifle jammed. 05282_ Gauss Rifle destroyed. Map ----- +----------------------------------------------------+ | ?????????????????????????????????????????????????? | | ?????????????????????????????????????????????????? | | ?????????????????????????????????????????????????? | | ?????????????????????????????????????????????????? | | ?????????????????????????????????????????????????? | | ?????????????????????????????????????????????????? | | ?????????????????????????????????????????????????? | | ?????????????????????????????????????????????????? | | ?????????????????????????????????????????????????? | | ?????????????????????????????????????????????????? | | ?????????????????????????????????????????????????? | | ?????????????????????????????????????????????????? | | ?????????????????????????????????????????????????? | | ?????????????????????????????????????????????????? | | ??????????????g ????????????????????????????????? | | ?????????????" ???????????????????????????????? | | ?????????????" ?????"????????????????????????? | | ???????????? "^ ???????"??????????????????????? | | ???????????? ?????????????????????????????? | | ??????????? #######+#?????#??????????????? | | ???????????? ###########??????????? | | ??????????? k ?????????? | | ???????????? !% ?????????? | | ???????????????? ????????? | | ?????????????#?????# u ????????? | | ???????????????????# =%|@ g ????????? | | ???????????????""" + %u%#########??#????????????? | | ???????????????""" #####*#???????#???????????????? | | ???????????????????????#!#???????? ??????????????? | | ?????????????????? ??### ###?????????????????????? | | ???????????????? ????# * #???????"?????????????? | | ?????????????????????# T" ### ??"???????????????? | | ??????????????#??????# " !%!+???????????????????? | | ?????????????????????# *### ???"??????????????? | | ??????????????#??????# ]#?????????????????????? | | ???????????????????#?##### #??????"??????????????? | | ????????????????#???#????# #?? ? ??????????????? | | ??????###########??##?#??# #?????????????????????? | | ?????## ########### #?#?????#?????????????? | | ?????## ## # #?????????????????????? | | ??????# ##= """ # #????#????????????????? | | ??????# ## """"" # ########??????????????? | | ??????# ## """"" + #???????#????? | | ??????# ## #+########??????????????? | | ??????# "# """ # #??????? ???????? | | ???#?## ## """"" # #???????????????? | | ?#????# ! ## """"" # #? ?????????????? | | #?????#####+##### # #???????????????? | | ?????????# #####################?? ????????????? | | ?#??#????# < #????#?????? ???????? | +----------------------------------------------------+ Best States ------------- Heat Dissipation 62 Energy Generation 14 Energy Capacity 280 Matter Stores 300 Matter Capacity 300 Sight Range 20 Robot Scan Range 13 Terrain Scan Range 14 Terrain Scan Density 10 Evasion (%) 40 Targeting Accuracy 6 Recoil Reduction 4 Kinecelleration 30 Item Schematics ----------------- None Robot Schematics ------------------ None Fabricated ------------ Nothing Alien Tech Used ----------------- None Achievements -------------- None Challenges ------------ None Game ------ Seed SupercompositeSensorAxe Manual? 0 Play Time 00:49:41 Cumulative 196.4 hours Start 2020.04.10 @ 13:32:24 End 2020.04.10 @ 14:23:02 Sessions 1 Manual Loads 0 Difficulty Rogue Special Mode None Game No. 144 Rogue 144 Adventurer 0 Explorer 0 Win Type - Total 9 Types 4/0/1/1/0/2/1 Lore% 75 Gallery% 79 Achievement% 71 Wizard Run 0 Options --------- ASCII 0 Keyboard 1 Movement Numpad Keybinds 0 Fullscreen 1 Font 12/Terminus Map View 83x54 Tactical HUD 1 Map Filters NONE Filters LOW_CONTRAST(13,24,33) Steam 1 RUN: 8f7ccf51-9dd1-4b75-bf7c-10a4e920510b